bitfinex-derivatives/quotes_SOLF0:USTF0_20241024
["timestamp","ask_amount","ask_price","bid_price","bid_amount"]
[1729805379188,23.94047,177.97,177.96,13.46998712]
[1729805379587,14.52797,177.97,177.96,13.46998712]
[1729805379793,2.2233,178.13,177.96,10.65888712]
[1729805380097,2.2233,178.13,178.09,7.77895791]
[1729805380799,2.2233,178.13,178.1,2.8089]
[1729805381197,2.1419,178.15,178.11,7.77895791]
[1729805381395,2.1419,178.15,178.12,2.8086]
[1729805381898,2.1419,178.15,178.11,7.77895791]
[1729805382100,2.1419,178.15,178.11,10.58755791]
[1729805382696,2.8078,178.17,178.13,10.58735791]
[1729805382903,7.77895791,178.18,178.13,10.58735791]
[1729805383497,2.8076,178.18,178.14,2.8083]
[1729805387908,10.58655791,178.18,178.14,2.8083]
[1729805388107,2.8085,178.13,178.1,2.8089]
[1729805388314,7.77895791,178.15,178.1,2.8089]
[1729805389309,2.8083,178.14,178.1,2.8089]
[1729805390009,7.77895791,178.15,178.08,7.77895791]
[1729805391311,2.8084,178.13,178.07,8.48]
[1729805391512,2.8084,178.13,178.09,7.77895791]
[1729805391916,7.77895791,178.15,178.07,8.48]
[1729805392418,7.77895791,178.13,178.07,7.77895791]
[1729805393011,2.8088,178.11,178.07,10.58825791]
[1729805393317,2.8088,178.11,178.06,7.77895791]
[1729805393519,2.8088,178.11,178.06,9.18365302]
[1729805393719,2.8088,178.11,178.07,7.77895791]
[1729805394113,2.8091,178.09,178.06,4.21409511]
[1729805394417,2.8091,178.09,178.06,1.40469511]
[1729805394714,2.8091,178.09,178.05,7.77895791]
[1729805395120,7.77895791,178.1,177.97,2.87610744]
[1729805395425,2.4081,178.11,177.99,8.12]
[1729805395426,7.77895791,178.09,177.99,8.12]
[1729805395617,7.77895791,178.09,178.03,7.77895791]
[1729805395812,7.77895791,178.09,177.98,8.12]
[1729805396013,7.77895791,178.09,178.02,7.77895791]
[1729805396728,2.8096,178.06,178.03,2.81]
[1729805397614,7.77895791,178.09,178.03,2.81]
[1729805397819,2.8094,178.07,178.03,2.81]
[1729805399121,7.77895791,178.07,178.02,2.8101]
[1729805399321,7.77895791,178.07,177.95,161.0683448]
[1729805399514,7.77895791,178.04,177.98,7.77895791]
[1729805399915,7.77895791,178.04,177.99,2.8106]
[1729805400127,4.7357,178.03,177.99,2.8106]
[1729805401319,7.77895791,178.02,177.89,0.8792]
[1729805401522,7.77895791,178.02,177.98,2.8108]
[1729805401724,7.77895791,178.02,177.97,7.77895791]
[1729805401925,7.77895791,178.02,177.97,10.58975791]
[1729805402522,7.77895791,178.02,177.97,7.77895791]
[1729805403227,7.77895791,178.02,177.97,10.58975791]
[1729805403527,7.77895791,178.01,177.95,7.77895791]
[1729805403928,7.77895791,178.01,177.97,2.8109]
[1729805405223,7.77895791,178.01,177.96,2.811]
[1729805405722,7.77895791,178.01,177.95,7.77895791]
[1729805405924,7.77895791,178.01,177.97,2.8109]
[1729805408235,7.77895791,178.01,177.95,7.77895791]
[1729805408830,2.3266,178.02,177.98,7.77895791]
[1729805410436,2.3266,178.02,177.98,10.58975791]
[1729805411429,10.10555791,178.02,177.98,10.58975791]
[1729805411937,10.10555791,178.02,177.98,2.8108]
[1729805417941,7.77895791,178.01,177.96,7.77895791]
[1729805418136,7.77895791,178.01,177.96,2.8111]
[1729805419540,7.77895791,177.99,177.96,2.8111]
[1729805420547,7.77895791,177.99,177.95,2.8112]
[1729805420750,7.77895791,177.98,177.91,7.77895791]
[1729805421142,7.77895791,177.98,177.94,2.8113]
[1729805423545,7.77895791,177.96,177.91,7.77895791]
[1729805423749,7.77895791,177.96,177.92,2.8116]
[1729805424745,7.77895791,177.96,177.93,2.8115]
[1729805426251,7.77895791,177.96,177.91,7.77895791]
[1729805426451,12.83525791,177.95,177.9,7.77895791]
[1729805426849,12.83525791,177.95,177.9,10.59085791]
[1729805427345,12.83525791,177.95,177.91,2.8119]
[1729805427948,12.83525791,177.95,177.88,7.77895791]
[1729805428947,12.83525791,177.95,177.9,2.812]
[1729805429248,7.77895791,177.92,177.87,7.77895791]
[1729805429447,5.0563,177.95,177.87,7.77895791]
[1729805429647,7.77895791,177.93,177.9,2.8119]
[1729805429953,7.77895791,177.93,177.82,7.08]
[1729805430153,7.77895791,177.93,177.87,7.77895791]
[1729805430949,7.77895791,177.9,177.81,7.9593]
[1729805431148,7.77895791,177.9,177.85,7.77895791]
[1729805431349,7.77895791,177.9,177.87,2.8124]
[1729805432048,7.77895791,177.9,177.86,2.8126]
[1729805432254,2.528,177.94,177.86,2.8126]
[1729805432255,7.77895791,177.89,177.86,2.8126]
[1729805433652,7.77895791,177.89,177.83,7.77895791]
[1729805433850,2.528,177.94,177.9,2.812]
[1729805433851,7.77895791,177.91,177.9,2.812]
[1729805434051,7.77895791,177.91,177.84,7.77895791]
[1729805434246,2.528,177.94,177.86,2.8127]
[1729805434452,7.77895791,177.91,177.86,2.8127]
[1729805434653,7.77895791,177.91,177.85,7.77895791]
[1729805434947,7.77895791,177.91,177.87,2.8125]
[1729805435859,7.77895791,177.91,177.85,7.77895791]
[1729805436961,2.528,177.94,177.87,2.8124]
[1729805437154,7.77895791,177.93,177.87,7.77895791]
[1729805437961,7.77895791,177.93,177.89,2.8122]
[1729805438254,5.0563,177.95,177.9,7.77895791]
[1729805439157,5.0563,177.95,177.85,7.08]
[1729805439351,5.0563,177.95,177.92,2.8117]
[1729805439752,7.77895791,177.93,177.86,2.8127]
[1729805440061,7.77895791,177.91,177.86,2.8127]
[1729805440660,7.77895791,177.91,177.85,7.77895791]
[1729805440860,7.77895791,177.91,177.87,2.8125]
[1729805441556,7.77895791,177.91,177.86,2.8126]
[1729805443463,7.77895791,177.9,177.8,6.72]
[1729805443762,7.77895791,177.88,177.75,0.8814]
[1729805443957,7.77895791,177.88,177.83,2.813]
[1729805444155,7.77895791,177.9,177.84,7.77895791]
[1729805444351,6.72,177.92,177.84,7.77895791]
[1729805444556,7.77895791,177.9,177.84,7.77895791]
[1729805444959,7.77895791,177.9,177.87,2.8125]
[1729805445263,7.77895791,177.9,177.86,7.77895791]
[1729805445564,7.77895791,177.92,177.86,7.77895791]
[1729805446560,7.77895791,177.92,177.87,2.8124]
[1729805447962,7.77895791,177.92,177.86,7.77895791]
[1729805448249,7.77895791,177.92,177.86,10.59155791]
[1729805448651,7.77895791,177.92,177.87,2.8124]
[1729805448851,7.77895791,177.91,177.87,2.8124]
[1729805451762,7.77895791,177.91,177.84,7.77895791]
[1729805451962,7.77895791,177.91,177.86,2.8126]
[1729805452161,7.77895791,177.91,177.84,7.77895791]
[1729805452762,7.77895791,177.91,177.86,2.8126]
[1729805454864,7.77895791,177.91,177.84,7.77895791]
[1729805455068,7.77895791,177.91,177.87,2.8125]
[1729805457672,7.77895791,177.91,177.9,2.8121]
[1729805457867,5.0563,177.95,177.86,7.77895791]
[1729805458171,5.0563,177.95,177.89,7.77895791]
[1729805458472,5.0563,177.95,177.91,2.8118]
[1729805458668,5.0563,177.95,177.89,7.77895791]
[1729805458872,5.0563,177.95,177.93,2.8115]
[1729805459772,5.0563,177.95,177.89,7.77895791]
[1729805460781,5.0563,177.95,177.92,2.8116]
[1729805461481,5.0563,177.95,177.9,2.8119]
[1729805461682,2.5529,177.95,177.91,7.77895791]
[1729805461870,7.77895791,177.97,177.91,7.77895791]
[1729805462673,7.77895791,177.97,177.94,2.8114]
[1729805463276,7.77895791,177.99,177.97,2.8109]
[1729805463578,7.77895791,177.99,177.93,7.77895791]
[1729805464981,7.77895791,177.99,177.96,2.811]
[1729805465487,7.77895791,178.01,177.96,2.811]
[1729805465688,7.77895791,178.02,177.96,7.77895791]
[1729805466275,2.4881,178.04,177.98,7.77895791]
[1729805466477,10.26705791,178.04,177.98,7.77895791]
[1729805466882,7.77895791,178.04,178.01,2.8103]
[1729805467073,2.3539,178.05,177.99,7.77895791]
[1729805467486,2.3539,178.05,178.02,2.8101]
[1729805468180,2.3539,178.05,178.01,7.77895791]
[1729805468380,7.77895791,178.09,178.02,7.77895791]
[1729805470683,6.4,178.11,177.96,3.4041]
[1729805470684,7.77895791,178.04,178.01,2.8103]
[1729805470888,7.77895791,178.04,177.98,7.77895791]
[1729805471589,7.77895791,178.04,178.02,2.8102]
[1729805473086,7.77895791,178.05,178.02,2.8102]
[1729805473686,2.8097,178.06,178.02,2.8102]
[1729805473885,7.77895791,178.06,178.02,2.8102]
[1729805474086,2.8097,178.05,178.02,2.8102]
[1729805474986,10.58855791,178.06,178.02,2.8102]
[1729805475785,2.8094,178.08,178.04,2.8097]
[1729805476380,7.77895791,178.07,178.04,2.8097]
[1729805477583,10.58835791,178.07,178.04,2.8097]
[1729805478194,2.8097,178.06,178.02,2.81]
[1729805478388,10.58865791,178.06,178.0,7.77895791]
[1729805480090,10.58865791,178.06,178.03,1.40532556]
[1729805480296,10.58865791,178.06,178.03,4.21522556]
[1729805480595,10.58865791,178.06,178.03,2.8099]
[1729805481798,2.8093,178.08,178.05,2.8097]
[1729805482001,7.77895791,178.07,178.01,1.40532456]
[1729805482395,10.58845791,178.07,178.03,2.8099]
[1729805482697,10.58845791,178.07,178.04,1.40533235]
[1729805483293,2.8095,178.06,178.03,2.8099]
[1729805483495,7.77895791,178.07,178.03,2.8099]
[1729805484299,10.58835791,178.07,178.0,7.77895791]
[1729805484504,10.58835791,178.07,178.04,2.8098]
[1729805489901,2.8094,178.07,178.04,2.8098]
[1729805490200,10.58835791,178.07,178.04,2.8098]
[1729805490898,2.8094,178.07,178.04,2.8098]
[1729805491103,10.58835791,178.07,178.04,2.8098]
[1729805495008,7.77895791,178.07,178.02,7.77895791]
[1729805495206,2.8096,178.06,178.03,2.8099]
[1729805496401,10.58845791,178.07,178.04,2.8098]
[1729805497716,7.77895791,178.06,178.02,2.81]
[1729805498009,7.77895791,178.04,177.99,7.77895791]
[1729805499013,10.58895791,178.04,178.0,2.8104]
[1729805499208,10.58895791,178.04,178.0,7.77895791]
[1729805499807,10.58895791,178.04,178.02,2.8102]
[1729805500511,7.77895791,178.04,178.02,2.8102]
[1729805502007,2.4288,178.13,177.97,5.76]
[1729805502203,5.2373,178.13,178.1,2.8088]
[1729805502404,2.4288,178.13,178.09,7.77895791]
[1729805502612,2.4288,178.13,178.11,7.77895791]
[1729805502917,2.4288,178.13,178.1,2.8089]
[1729805504615,2.4288,178.13,178.09,7.77895791]
[1729805504809,2.4288,178.13,178.1,2.8089]
[1729805511722,5.2373,178.13,178.09,2.809]
[1729805516425,5.2373,178.13,178.1,2.8089]
[1729805517613,2.4288,178.13,178.08,7.77895791]
[1729805518628,2.4288,178.13,178.1,2.8088]
[1729805518825,2.4288,178.13,178.1,10.58775791]
[1729805520822,2.4288,178.13,178.1,7.77895791]
[1729805521028,2.4288,178.13,178.11,2.8087]
[1729805529025,2.81641789,178.21,178.1,7.77895791]
[1729805529327,2.8081,178.15,178.12,2.8085]
[1729805529716,19.6802827,178.39,178.11,7.77895791]
[1729805530025,2.808,178.16,178.13,2.8084]
[1729805530532,2.8078,178.17,178.14,2.8082]
[1729805530926,2.8078,178.17,178.13,7.77895791]
[1729805531127,2.8078,178.17,178.14,2.8083]
[1729805532224,2.8078,178.18,178.15,2.8081]
[1729805532522,2.8078,178.18,178.15,10.58705791]
[1729805532829,5.0609,178.2,178.15,7.77895791]
[1729805533026,2.8075,178.19,178.16,2.8078]
[1729805533624,7.8683,178.2,178.16,2.8078]
[1729805534225,7.8683,178.2,178.17,2.8077]
[1729805534430,5.0609,178.2,178.1,5.46]
[1729805534624,5.0609,178.2,178.15,7.77895791]
[1729805535433,2.8076,178.19,178.16,2.8079]
[1729805536123,2.8076,178.19,178.16,10.58685791]
[1729805536324,2.8078,178.17,178.14,2.8083]
[1729805536623,10.34525791,178.2,178.15,7.77895791]
[1729805537322,2.8075,178.19,178.16,2.808]
[1729805538428,10.34525791,178.2,178.15,7.77895791]
[1729805538626,10.34525791,178.2,178.14,5.14]
[1729805538924,10.34525791,178.2,178.14,12.91895791]
[1729805538925,2.5663,178.2,178.14,12.91895791]
[1729805539332,5.3738,178.2,178.16,2.8079]
[1729805539537,2.5663,178.2,178.15,7.77895791]
[1729805539932,2.8075,178.19,178.15,10.58695791]
[1729805542036,7.77895791,178.18,178.0,5.6209]
[1729805542332,7.77895791,178.15,178.05,5.14]
[1729805542529,7.77895791,178.15,178.09,7.77895791]
[1729805542731,2.8085,178.13,178.09,2.809]
[1729805542930,2.8085,178.13,178.09,10.58795791]
[1729805543334,10.58765791,178.12,178.07,2.8094]
[1729805543535,7.77895791,178.12,178.07,2.8094]
[1729805543739,7.77895791,178.12,178.04,5.14]
[1729805543938,7.77895791,178.12,178.06,7.77895791]
[1729805544237,7.77895791,178.12,178.04,5.14]
[1729805544437,2.8089,178.11,178.06,10.58845791]
[1729805544642,7.77895791,178.1,178.06,7.77895791]
[1729805544944,7.77895791,178.1,178.05,7.77895791]
[1729805545143,2.8092,178.09,178.05,10.58865791]
[1729805545330,7.77895791,178.1,178.05,7.77895791]
[1729805545740,10.58785791,178.1,178.06,10.58835791]
[1729805547234,2.8089,178.1,178.06,10.58835791]
[1729805547737,2.8089,178.1,178.06,7.77895791]
[1729805550236,7.77895791,178.12,178.06,7.77895791]
[1729805550940,2.8089,178.1,178.06,10.58835791]
[1729805551845,2.8087,178.12,178.07,2.8093]
[1729805552040,2.5315,178.13,178.07,7.77895791]
[1729805552540,2.8086,178.12,178.08,2.8092]
[1729805552838,2.5315,178.13,178.07,7.77895791]
[1729805553041,2.5315,178.13,178.09,10.58795791]
[1729805555141,5.34,178.13,178.09,10.58795791]
[1729805562749,2.5315,178.13,178.09,7.77895791]
[1729805562949,2.8087,178.12,178.09,7.77895791]
[1729805564250,2.5315,178.13,178.09,7.77895791]
[1729805564449,5.34,178.13,178.09,10.58795791]
[1729805564645,5.34,178.13,178.1,1.4048908]
[1729805566343,5.34,178.13,178.1,4.2137908]
[1729805566746,5.34,178.13,178.1,1.4048908]
[1729805567348,2.5315,178.13,178.09,7.77895791]
[1729805567556,2.5315,178.13,178.06,5.14]
[1729805567761,2.5315,178.13,178.08,7.77895791]
[1729805569361,2.8086,178.12,178.09,2.809]
[1729805569961,2.809,178.1,178.06,7.77895791]
[1729805570760,2.809,178.1,178.07,2.8093]
[1729805574862,12.77895791,178.12,177.95,224.56817462]
[1729805575057,2.8095,178.07,178.04,10.58875791]
[1729805576557,7.77895791,178.1,178.04,7.77895791]
[1729805576759,7.77895791,178.08,177.95,221.7371435]
[1729805577064,2.3273,178.11,178.01,7.77895791]
[1729805577065,7.77895791,178.06,178.01,7.77895791]
[1729805577369,2.81,178.04,178.01,10.58915791]
[1729805578567,2.8097,178.05,178.02,2.8102]
[1729805578767,7.77895791,178.05,177.99,7.77895791]
[1729805579174,7.77895791,178.05,177.98,2.8107]
[1729805579369,2.5019,178.06,178.05,1.40508969]
[1729805579672,10.28085791,178.06,177.95,5.0]
[1729805579870,7.77895791,178.05,177.99,7.77895791]
[1729805582375,7.77895791,178.05,177.99,10.58955791]
[1729805582376,2.8101,178.03,177.99,10.58955791]
[1729805583973,2.8102,178.02,177.99,7.77895791]
[1729805584575,2.5019,178.06,177.84,14.11559769]
[1729805584576,2.8108,177.99,177.86,8.47780711]
[1729805584882,7.77895791,178.0,177.95,7.77895791]
[1729805585177,2.8105,178.0,177.96,2.8111]
[1729805585371,12.77895791,178.02,177.95,7.77895791]
[1729805585576,12.77895791,178.02,177.86,8.47780711]
[1729805585768,2.8108,177.98,177.96,7.77895791]
[1729805585968,7.77895791,178.0,177.95,7.77895791]
[1729805587579,2.4153,178.0,177.96,7.77895791]
[1729805587771,2.8106,177.99,177.98,7.77895791]
[1729805587971,2.8106,177.99,177.96,7.77895791]
[1729805589278,2.8106,177.99,177.96,10.59005791]
[1729805592375,2.4153,178.0,177.96,10.59005791]
[1729805592685,5.2258,178.0,177.96,10.59005791]
[1729805592983,2.4153,178.0,177.92,5.0]
[1729805593178,2.8108,177.99,177.95,10.59025791]
[1729805599986,7.77895791,177.96,177.85,5.0]
[1729805600186,2.4153,178.0,177.85,5.0]
[1729805600187,7.77895791,177.94,177.89,7.77895791]
[1729805600482,10.59045791,177.94,177.9,2.8119]
[1729805600985,10.59045791,177.94,177.89,7.77895791]
[1729805600986,7.77895791,177.94,177.89,7.77895791]
[1729805601385,7.77895791,177.94,177.91,2.8119]
[1729805601782,10.59045791,177.94,177.91,2.8119]
[1729805602383,7.77895791,177.94,177.89,10.59115791]
[1729805602587,7.77895791,177.94,177.89,7.77895791]
[1729805602982,2.8117,177.93,177.89,10.59115791]
[1729805603274,7.77895791,177.94,177.89,7.77895791]
[1729805603891,2.8116,177.93,177.9,2.8121]
[1729805604184,2.8116,177.93,177.87,7.77895791]
[1729805604384,2.8116,177.93,177.89,2.8121]
[1729805605284,2.8116,177.93,177.9,2.812]
[1729805606382,5.0,177.97,177.84,5.0]
[1729805606383,7.77895791,177.92,177.84,5.0]
[1729805606576,7.77895791,177.92,177.86,7.77895791]
[1729805606986,2.8121,177.9,177.87,2.8124]
[1729805607484,2.812,177.91,177.87,2.8124]
[1729805608477,7.77895791,177.92,177.85,7.77895791]
[1729805608685,7.77895791,177.93,177.87,7.77895791]
[1729805609189,2.8119,177.92,177.88,2.8123]
[1729805609781,2.8119,177.91,177.88,2.8123]
[1729805609986,7.77895791,177.9,177.81,5.0]
[1729805610281,2.8126,177.87,177.84,7.77895791]
[1729805611290,2.8126,177.87,177.84,10.59185791]
[1729805611483,7.77895791,177.9,177.84,10.59185791]
[1729805611793,2.8124,177.88,177.84,10.59185791]
[1729805614686,2.8124,177.88,177.85,2.8128]
[1729805615691,7.77895791,177.89,177.84,7.77895791]
[1729805615995,7.77895791,177.89,177.84,10.59195791]
[1729805615996,2.8126,177.87,177.84,10.59195791]
[1729805618402,10.59155791,177.87,177.84,2.813]
[1729805618795,2.8126,177.87,177.84,2.813]
[1729805619101,10.59155791,177.87,177.84,2.813]
[1729805621305,2.8128,177.86,177.83,2.8131]
[1729805626395,2.8128,177.86,177.82,2.8132]
[1729805627405,10.59175791,177.86,177.83,2.8132]
[1729805628805,2.8132,177.84,177.79,2.8138]
[1729805629109,2.8132,177.84,177.79,7.77895791]
[1729805629795,10.59215791,177.84,177.79,7.77895791]
[1729805629999,7.77895791,177.84,177.79,7.77895791]
[1729805630205,10.59205791,177.84,177.81,2.8135]
[1729805631411,2.8132,177.83,177.8,2.8136]
[1729805632199,10.59195791,177.84,177.81,2.8135]
[1729805634909,7.77895791,177.84,177.78,7.77895791]
[1729805635111,2.8132,177.83,177.8,2.8136]
[1729805635502,7.77895791,177.82,177.8,2.8136]
[1729805638313,7.77895791,177.82,177.75,5.0]
[1729805638314,7.77895791,177.81,177.78,2.8139]
[1729805638900,2.8137,177.8,177.77,2.8141]
[1729805639296,7.77895791,177.81,177.77,2.8141]
[1729805639510,10.59245791,177.81,177.78,2.8139]
[1729805640005,7.77895791,177.79,177.69,2.4291]
[1729805640202,7.77895791,177.79,177.76,2.8141]
[1729805640705,2.8141,177.78,177.73,7.77895791]
[1729805641008,5.0,177.82,177.69,2.4291]
[1729805641201,7.77895791,177.76,177.7,7.77895791]
[1729805641402,7.77895791,177.77,177.7,7.77895791]
[1729805642005,10.59315791,177.77,177.71,2.815]
[1729805642205,7.77895791,177.76,177.69,5.0]
[1729805642601,7.77895791,177.76,177.7,7.77895791]
[1729805642804,7.77895791,177.76,177.69,5.0]
[1729805643005,7.77895791,177.76,177.73,2.8147]
[1729805643406,7.2239,177.81,177.72,7.77895791]
[1729805643614,7.77895791,177.8,177.75,7.77895791]
[1729805644314,7.77895791,177.8,177.74,5.0]
[1729805645115,7.77895791,177.78,177.72,7.77895791]
[1729805645516,7.77895791,177.78,177.76,2.8143]
[1729805645812,7.77895791,177.77,177.71,5.0]
[1729805646013,7.77895791,177.77,177.71,12.77895791]
[1729805646211,10.59315791,177.77,177.73,2.8147]
[1729805646419,7.77895791,177.77,177.69,7.77895791]
[1729805646613,10.59345791,177.75,177.68,2.8155]
[1729805646810,10.59345791,177.75,177.68,7.77895791]
[1729805649009,10.59345791,177.75,177.7,2.8152]
[1729805649217,10.59345791,177.75,177.68,7.77895791]
[1729805649419,10.59325791,177.76,177.7,7.77895791]
[1729805649719,10.59325791,177.76,177.72,2.8149]
[1729805649916,10.59325791,177.76,177.7,7.77895791]
[1729805650220,7.77895791,177.76,177.7,7.77895791]
[1729805650717,7.77895791,177.76,177.72,2.8149]
[1729805651018,2.8144,177.75,177.7,7.77895791]
[1729805651720,7.77895791,177.76,177.7,7.77895791]
[1729805653511,2.8145,177.75,177.72,2.8148]
[1729805654216,2.3293,177.86,177.74,7.77895791]
[1729805654521,7.77895791,177.85,177.79,7.77895791]
[1729805654818,10.59185791,177.85,177.79,7.77895791]
[1729805655011,10.59185791,177.85,177.77,5.0]
[1729805655012,7.77895791,177.85,177.77,5.0]
[1729805655213,7.77895791,177.85,177.79,7.77895791]
[1729805655416,2.813,177.84,177.8,2.8135]
[1729805657716,10.59195791,177.84,177.8,2.8135]
[1729805658916,130.66898043,178.68,177.77,5.0]
[1729805659120,2.8123,177.89,177.84,2.8129]
[1729805659310,10.59125791,177.89,177.84,2.8129]
[1729805659509,7.77895791,177.89,177.84,2.8129]
[1729805660318,2.8124,177.88,177.84,2.8129]
[1729805661120,7.77895791,177.87,177.84,2.8129]
[1729805664025,7.77895791,177.87,177.82,4.98]
[1729805664226,7.77895791,177.87,177.83,2.8131]
[1729805666126,2.8124,177.88,177.83,2.8131]
[1729805666818,2.8127,177.87,177.83,2.8131]
[1729805668423,10.59135791,177.89,177.84,2.813]
[1729805668728,7.77895791,177.89,177.84,2.813]
[1729805669226,2.8125,177.88,177.84,2.813]
[1729805671129,2.8125,177.87,177.84,2.813]
[1729805675330,2.8125,177.87,177.84,10.59195791]
[1729805676935,2.8125,177.88,177.84,10.59195791]
[1729805677832,7.77895791,177.89,177.84,10.59195791]
[1729805678034,2.8125,177.87,177.84,10.59195791]
[1729805679437,7.77895791,177.89,177.84,7.77895791]
[1729805679630,2.8125,177.88,177.84,10.59195791]
[1729805680134,7.77895791,177.9,177.84,10.59195791]
[1729805680429,7.77895791,177.9,177.84,7.77895791]
[1729805680941,2.8126,177.87,177.84,7.77895791]
[1729805682035,2.8129,177.85,177.82,7.7933]
[1729805682337,7.77895791,177.87,177.82,7.7933]
[1729805682724,2.813,177.85,177.82,7.7933]
[1729805682929,7.77895791,177.87,177.82,4.98]
[1729805683538,2.8128,177.86,177.82,7.7933]
[1729805684333,2.8128,177.86,177.82,2.8133]
[1729805687230,2.8128,177.86,177.84,7.77895791]
[1729805687437,2.8128,177.86,177.82,2.8133]
[1729805687438,2.8128,177.86,177.82,10.59225791]
[1729805689436,2.813,177.85,177.82,10.59225791]
[1729805696141,2.813,177.85,177.81,2.8134]
[1729805696338,2.8133,177.83,177.78,4.98]
[1729805696540,2.8133,177.83,177.8,7.77895791]
[1729805697248,2.8133,177.83,177.8,10.59255791]
[1729805698956,2.8133,177.83,177.8,2.8136]
[1729805699245,2.8133,177.83,177.8,10.59255791]
[1729805702242,2.813,177.85,177.8,7.77895791]
[1729805702446,7.77895791,177.86,177.8,7.77895791]
[1729805702639,7.77895791,177.86,177.77,4.98]
[1729805702837,7.77895791,177.86,177.79,7.77895791]
[1729805703652,4.9073,177.89,177.79,10.59265791]
[1729805703653,2.8133,177.83,177.79,10.59265791]
[1729805704044,7.77895791,177.84,177.79,10.59265791]
[1729805704244,2.8134,177.82,177.79,10.59265791]
[1729805712556,2.8134,177.82,177.79,2.8137]
[1729805712755,2.8134,177.82,177.79,10.59265791]
[1729805717353,2.8134,177.82,177.79,2.8137]
[1729805717555,2.8134,177.82,177.79,10.59265791]
[1729805730970,2.8134,177.82,177.76,4.98]
[1729805730971,2.8128,177.86,177.83,2.8131]
[1729805731164,2.8128,177.86,177.81,7.77895791]
[1729805731363,2.8128,177.86,177.82,2.8132]
[1729805731966,2.8129,177.85,177.82,2.8132]
[1729805732369,5.6206,178.02,177.84,7.77895791]
[1729805732560,2.4867,177.94,177.87,7.77895791]
[1729805732869,2.812,177.91,177.87,10.59135791]
[1729805733269,7.77895791,177.93,177.87,10.59135791]
[1729805733467,2.8121,177.9,177.87,10.59135791]
[1729805733967,7.77895791,177.93,177.87,10.59135791]
[1729805734373,2.4867,177.94,177.88,7.77895791]
[1729805734573,2.3127,177.95,177.9,7.77895791]
[1729805734763,5.1372838,178.01,177.91,7.77895791]
[1729805734965,7.77895791,178.0,177.93,7.77895791]
[1729805735571,2.3805,178.01,177.95,7.77895791]
[1729805736272,2.8102,178.02,177.97,2.8109]
[1729805737568,2.8102,178.02,177.98,7.77895791]
[1729805738175,2.8095,178.06,178.01,10.58925791]
[1729805740477,2.8094,178.07,178.02,2.8101]
[1729805742078,7.77895791,178.09,178.01,7.77895791]
[1729805742280,4.96,178.1,178.03,7.77895791]
[1729805743284,2.8091,178.09,178.04,2.8098]
[1729805744171,2.8089,178.1,178.05,10.58845791]
[1729805744374,10.15945791,178.12,178.05,10.58845791]
[1729805744375,10.15945791,178.12,178.05,7.77895791]
[1729805745176,7.77895791,178.12,178.05,7.77895791]
[1729805745382,7.77895791,178.14,178.07,7.77895791]
[1729805745580,7.77895791,178.14,178.08,7.77895791]
[1729805745976,2.8086,178.12,178.08,7.77895791]
[1729805746286,7.77895791,178.14,178.08,7.77895791]
[1729805746585,2.8086,178.13,178.08,10.58805791]
[1729805746771,7.77895791,178.14,178.08,10.58805791]
[1729805747679,2.8086,178.12,178.07,2.8094]
[1729805747880,2.8086,178.12,178.07,10.58835791]
[1729805748280,7.77895791,178.14,178.07,10.58835791]
[1729805748486,2.8087,178.12,178.07,10.58835791]
[1729805751390,2.339,178.15,178.07,10.58835791]
[1729805751593,7.77895791,178.14,178.07,10.58835791]
[1729805751782,2.339,178.15,178.07,7.77895791]
[1729805751983,7.77895791,178.14,178.07,7.77895791]
[1729805753293,2.8087,178.12,178.08,2.8092]
[1729805755991,2.8087,178.12,178.09,7.77895791]
[1729805758885,2.8084,178.14,178.11,7.77895791]
[1729805760495,2.8084,178.14,178.1,2.8088]
[1729805760794,12.73895791,178.16,178.06,4.96]
[1729805760986,12.73895791,178.16,178.08,7.77895791]
[1729805761180,7.77895791,178.13,178.08,7.77895791]
[1729805761480,2.8089,178.11,178.06,4.96]
[1729805761679,2.8089,178.11,178.08,7.77895791]
[1729805761887,2.8089,178.11,178.07,2.8093]
[1729805762095,2.8089,178.11,178.08,7.77895791]
[1729805762286,2.8089,178.11,178.09,7.77895791]
[1729805765987,2.8084,178.14,178.09,7.77895791]
[1729805766291,10.15585791,178.15,178.09,7.77895791]
[1729805766888,2.8089,178.11,178.09,7.77895791]